fUSD/lending_fUSD_20240706
["ID","MTS","AMOUNT","RATE_DAILY","PERIOD"]
[331346779,1720267832311,-152.01096001,0.00013699,2]
[331346780,1720267832323,-14.12903999,0.00013699,2]
[331346781,1720267832332,-250.0,0.00013708,2]
[331346782,1720267832342,-300.0,0.00013719,2]
[331346783,1720267832351,-463.516,0.0001372,2]
[331346784,1720267832361,-13.39496001,0.0001372,2]
[331346785,1720267832373,-626.29803999,0.0001372,2]
[331346786,1720267832384,-809.0,0.0001372,2]
[331346787,1720267832393,-446.266,0.0001372,2]
[331346788,1720267832402,-125.89196001,0.0001372,2]
[331346789,1720267832415,-331.93103999,0.0001372,2]
[331346790,1720267832424,-196.85,0.0001372,2]
[331346791,1720267832433,-2376.0,0.0001372,2]
[331346792,1720267832443,-1304.0,0.0001372,2]
[331346793,1720267832455,-161.716,0.0001372,2]
[331346794,1720267832465,-283.0,0.0001372,2]
[331346795,1720267832474,-548.0,0.0001372,2]
[331346796,1720267832483,-3249.0,0.0001372,2]
[331346797,1720267832492,-1988.0,0.0001372,2]
[331346798,1720267832501,-2200.78376882,0.00013759,2]
[331346799,1720267832512,-10000.0,0.00013774,2]
[331346800,1720267832521,-500.0,0.00013888,2]
[331346801,1720267832530,-482.94283217,0.00013889,2]
[331346802,1720267832540,-1386.68676949,0.00013899,2]
[331346803,1720267832549,-492.36298979,0.00013899,2]
[331346804,1720267832559,-1000.0,0.000139,2]
[331346805,1720267832568,-317.07879292,0.000139,2]
[331346806,1720267832577,-915.25,0.00013948,2]
[331346807,1720267832586,-291.0,0.00013972,2]
[331346808,1720267832595,-1199.0,0.00013972,2]
[331346809,1720267832604,-1470.819,0.00013972,2]
[331346810,1720267832613,-5178.0,0.00013972,2]
[331346811,1720267832623,-21063.31245978,0.00013972,2]
[331346812,1720267832635,-457.29170079,0.00013972,2]
[331346825,1720267832777,-1009.13138921,0.00013972,2]
[331346838,1720267838085,-796.44791203,0.00013774,2]
[331346896,1720267839530,-9203.55208797,0.00013774,2]
[331346898,1720267839541,-4406.56511475,0.00013774,2]
[331346901,1720267839552,-10275.77945022,0.00013972,2]
[331346902,1720267839562,-6599.468628,0.00013989,2]
[331346904,1720267839571,-653.96489357,0.00013989,2]
[331346906,1720267839581,-155.50596887,0.00013989,2]
[331346909,1720267839591,-369.29403955,0.00013989,2]
[331346911,1720267839601,-155.0,0.00013989,2]
[331346913,1720267839611,-277.40420016,0.00013989,2]
[331346915,1720267839621,-260.57805492,0.00013989,2]
[331346916,1720267839630,-199.34001968,0.00013989,2]
[331346918,1720267839640,-5586.7691028,0.0001399,2]
[331346920,1720267839650,-4574.0695777,0.0001399,2]
[331346922,1720267839660,-1366.25769218,0.0001399,2]
[331346925,1720267839672,-900.25110839,0.0001399,2]
[331347029,1720267840726,-1294.86125193,0.0001399,2]
[331347033,1720267840736,-394.6158734,0.00013999,3]
[331347071,1720267841036,-1103.46238181,0.00013999,3]
[331347077,1720267841081,-813.1008505,0.00013999,3]
[331347079,1720267841091,-547.0,0.00014,2]
[331347081,1720267841101,-16349.28916301,0.00014,2]
[331347083,1720267841112,-344.62556429,0.00014,2]
[331347105,1720267841318,-450.27179982,0.00014,2]
[331347107,1720267841329,-1706.07071022,0.00014,2]
[331347408,1720267844847,-202.92676465,0.00013989,2]
[331347410,1720267844856,-1204.87627749,0.00014,2]
[331347412,1720267844867,-346.72365217,0.00014,2]
[331347414,1720267844879,-693.49555066,0.00014,2]
[331347426,1720267846274,-2928.87301085,0.00014,2]
[331347438,1720267846676,-20991.85634073,0.00014,2]
[331347442,1720268165592,1386.68676949,0.00011199,2]
[331347443,1720268220412,299.81684355,0.00011199,2]
[331347444,1720268245523,155.36050558,0.00026,120]
[331347445,1720268252640,155.0,0.00011199,2]
[331347446,1720268358841,9236.41322618,0.00011199,2]
[331347447,1720268365042,155.0,0.00011199,2]
[331347448,1720268468603,1161.01650591,0.00011199,2]
[331347449,1720268788030,-160.261,0.00027801,120]
[331347450,1720268828529,-681.58896509,0.00032126,10]
[331347451,1720268828555,-158.20984698,0.00032126,10]
[331347452,1720268828580,-300.0,0.00032126,15]
[331347453,1720268828607,-500.0,0.00032126,10]
[331347454,1720268828633,-264.6440642,0.00032126,10]
[331347455,1720268828658,-275.0,0.00032126,14]
[331347456,1720268828688,-20392.55503862,0.00032126,15]
[331347457,1720268828714,-150.0,0.00032126,10]
[331347458,1720268828743,-48124.00740622,0.00032126,10]
[331347459,1720268828772,-1040.0,0.00032126,10]
[331347460,1720268828799,-1040.0,0.00032126,10]
[331347461,1720268828825,-1040.0,0.00032126,10]
[331347462,1720268828854,-1040.0,0.00032126,10]
[331347463,1720268828881,-1040.0,0.00032126,10]
[331347464,1720268828908,-1040.0,0.00032126,10]
[331347465,1720268828934,-1040.0,0.00032126,10]
[331347466,1720268828962,-1040.0,0.00032126,10]
[331347467,1720268828991,-1040.0,0.00032126,10]
[331347468,1720268829016,-1040.0,0.00032126,10]
[331347469,1720268829042,-1021.33488971,0.00032126,10]
[331347470,1720268829067,-1040.0,0.00032126,10]
[331347471,1720268829093,-1040.0,0.00032126,10]
[331347472,1720268829118,-1040.0,0.00032126,10]
[331347473,1720268829143,-1040.0,0.00032126,10]
[331347474,1720268829168,-1040.0,0.00032126,10]
[331347475,1720268829195,-1040.0,0.00032126,10]
[331347476,1720268829221,-1040.0,0.00032126,10]
[331347477,1720268829246,-1040.0,0.00032126,10]
[331347478,1720268829270,-1040.0,0.00032126,10]
[331347479,1720268829294,-1040.0,0.00032126,10]
[331347480,1720268829320,-1040.0,0.00032126,10]
[331347481,1720268829345,-1040.0,0.00032126,10]
[331347492,1720268829669,-1040.0,0.00032126,10]
[331347493,1720268829696,-1040.0,0.00032126,10]
[331347494,1720268829722,-1040.0,0.00032126,10]
[331347495,1720268829749,-418.5321,0.00032126,30]
[331347496,1720268829776,-243.16837723,0.00032126,60]
[331347497,1720268829802,-191.0,0.00032126,30]
[331347498,1720268829827,-503.10119119,0.00032126,30]
[331347499,1720268829853,-162.18512373,0.00032126,30]
[331347500,1720268829878,-342.71427236,0.00032126,120]
[331347501,1720268829905,-500.0,0.00032126,30]
[331347502,1720268829933,-508.94297743,0.00032126,30]
[331347503,1720268829959,-500.0,0.00032126,30]
[331347504,1720268829985,-501.96098681,0.00032126,30]
[331347505,1720268830010,-500.0,0.00032126,30]
[331347506,1720268830036,-489.36876822,0.00032126,30]
[331347507,1720268830062,-500.0,0.00032126,30]
[331347508,1720268830088,-500.0,0.00032126,30]
[331347509,1720268830113,-500.0,0.00032126,30]
[331347511,1720268830139,-500.0,0.00032126,30]
[331347513,1720268830164,-501.85671096,0.00032126,30]
[331347515,1720268830190,-500.0,0.00032126,30]
[331347516,1720268830215,-500.0,0.00032126,30]
[331347517,1720268830240,-500.0,0.00032126,30]
[331347518,1720268830266,-500.0,0.00032126,30]
[331347519,1720268830291,-500.0,0.00032126,30]
[331347520,1720268830317,-520.93441128,0.00032126,30]
[331347521,1720268830343,-500.0,0.00032126,30]
[331347522,1720268830369,-500.0,0.00032126,30]
[331347523,1720268830396,-500.0,0.00032126,30]
[331347524,1720268830424,-500.0,0.00032126,30]
[331347525,1720268830449,-497.69687692,0.00032126,30]
[331347526,1720268830475,-500.0,0.00032126,30]
[331347527,1720268830502,-502.29634493,0.00032126,30]
[331347528,1720268830528,-500.0,0.00032126,30]
[331347529,1720268830553,-500.0,0.00032126,30]
[331347530,1720268830580,-501.97184044,0.00032126,30]
[331347531,1720268830606,-500.24595677,0.00032126,30]
[331347532,1720268830632,-500.0,0.00032126,30]
[331347533,1720268830659,-501.43002239,0.00032126,30]
[331347534,1720268830686,-500.0,0.00032126,30]
[331347535,1720268830713,-502.50234889,0.00032126,30]
[331347536,1720268830740,-500.0,0.00032126,30]
[331347537,1720268830769,-500.0,0.00032126,30]
[331347538,1720268830797,-500.0,0.00032126,30]
[331347539,1720268830823,-264.60306001,0.00032126,30]
[331347540,1720268830849,-500.0,0.00032126,30]
[331347541,1720268830877,-501.77191205,0.00032126,30]
[331347542,1720268830903,-500.0,0.00032126,30]
[331347543,1720268830928,-496.27684578,0.00032126,30]
[331347544,1720268830954,-502.12481777,0.00032126,30]
[331347545,1720268830984,-500.0,0.00032126,30]
[331347546,1720268831012,-502.30983559,0.00032126,30]
[331347547,1720268831041,-500.0,0.00032126,30]
[331347548,1720268831066,-500.0,0.00032126,30]
[331347549,1720268831092,-500.0,0.00032126,30]
[331347550,1720268831118,-500.0,0.00032126,30]
[331347551,1720268831143,-505.86159828,0.00032126,30]
[331347552,1720268831168,-422.25484859,0.00032126,30]
[331347553,1720268831194,-500.0,0.00032126,30]
[331347554,1720268831220,-500.0,0.00032126,30]
[331347555,1720268831245,-500.0,0.00032126,30]
[331347556,1720268831270,-500.0,0.00032126,30]
[331347557,1720268831295,-649.05761579,0.00032126,30]
[331347558,1720268831322,-500.0,0.00032126,30]
[331347559,1720268831350,-500.0,0.00032126,30]
[331347560,1720268831376,-500.0,0.00032126,30]
[331347561,1720268831403,-500.0,0.00032126,30]
[331347562,1720268831430,-500.0,0.00032126,30]
[331347563,1720268831458,-500.0,0.00032126,30]
[331347564,1720268831484,-500.0,0.00032126,30]
[331347565,1720268831509,-500.0,0.00032126,30]
[331347566,1720268831535,-316.03788802,0.00032126,30]
[331347567,1720268831560,-237.40231386,0.00032126,30]
[331347568,1720268831586,-388.23145716,0.00032126,30]
[331347569,1720268831614,-178.10040641,0.00032126,30]
[331347570,1720268831640,-500.0,0.00032126,30]
[331347571,1720268831667,-503.41522053,0.00032126,30]
[331347572,1720268831697,-500.0,0.00032126,30]
[331347573,1720268831724,-500.76608997,0.00032126,30]
[331347574,1720268831750,-500.0,0.00032126,30]
[331347575,1720268831776,-500.0,0.00032126,30]
[331347576,1720268831803,-500.0,0.00032126,30]
[331347577,1720268831829,-500.0,0.00032126,30]
[331347578,1720268831855,-500.0,0.00032126,30]
[331347579,1720268831882,-500.0,0.00032126,30]
[331347580,1720268831910,-500.0,0.00032126,30]
[331347581,1720268831936,-500.0,0.00032126,30]
[331347582,1720268831963,-500.0,0.00032126,30]
[331347583,1720268831989,-400.57791009,0.00032126,30]
[331347584,1720268832014,-500.0,0.00032126,30]
[331347585,1720268832040,-500.0,0.00032126,30]
[331347586,1720268832066,-500.0,0.00032126,30]
[331347587,1720268832091,-501.51092579,0.00032126,30]
[331347588,1720268832119,-299.26486075,0.00032126,30]
[331347589,1720268832146,-500.0,0.00032126,30]
[331347590,1720268832173,-500.0,0.00032126,30]
[331347591,1720268832200,-500.53976351,0.00032126,30]
[331347592,1720268832227,-500.0,0.00032126,30]
[331347593,1720268832252,-500.0,0.00032126,30]
[331347594,1720268832279,-500.0,0.00032126,30]
[331347595,1720268832305,-500.0,0.00032126,30]
[331347596,1720268832333,-500.0,0.00032126,30]
[331347597,1720268832361,-500.0,0.00032126,30]
[331347598,1720268832390,-500.0,0.00032126,30]
[331347599,1720268832594,-500.0,0.00032126,30]
[331347600,1720268832632,-518.33678588,0.00032126,30]
[331347601,1720268832658,-500.23051912,0.00032126,30]
[331347602,1720268832683,-501.98836351,0.00032126,30]
[331347603,1720268832712,-500.0,0.00032126,30]
[331347604,1720268832738,-501.5012927,0.00032126,30]
[331347605,1720268832764,-320.38746661,0.00032126,30]
[331347606,1720268832788,-500.0,0.00032126,30]
[331347607,1720268832812,-500.0,0.00032126,30]
[331347608,1720268832838,-503.22445486,0.00032126,30]
[331347609,1720268832862,-500.0,0.00032126,30]
[331347610,1720268832887,-501.01119535,0.00032126,30]
[331347611,1720268832912,-456.17595594,0.00032126,30]
[331347612,1720268832938,-454.24474789,0.00032126,30]
[331347613,1720268832962,-500.0,0.00032126,30]
[331347614,1720268832987,-500.0,0.00032126,30]
[331347615,1720268833011,-300.74316092,0.00032126,30]
[331347616,1720268833036,-364.06169086,0.00032126,30]
[331347617,1720268833060,-500.0,0.00032126,30]
[331347618,1720268833084,-503.73060641,0.00032126,30]
[331347619,1720268833110,-488.43785823,0.00032126,30]
[331347620,1720268833134,-438.06491472,0.00032126,30]
[331347621,1720268833159,-500.0,0.00032126,30]
[331347622,1720268833183,-500.0,0.00032126,30]
[331347623,1720268833207,-500.0,0.00032126,30]
[331347624,1720268833231,-500.0,0.00032126,30]
[331347625,1720268833254,-500.0,0.00032126,30]
[331347626,1720268833278,-500.0,0.00032126,30]
[331347627,1720268833302,-265.37125615,0.00032126,30]
[331347628,1720268833333,-396.53113207,0.00032126,30]
[331347629,1720268833358,-500.0,0.00032126,30]
[331347630,1720268833383,-500.0,0.00032126,30]
[331347631,1720268833408,-500.0,0.00032126,30]
[331347632,1720268833437,-500.0,0.00032126,30]
[331347633,1720268833462,-500.0,0.00032126,30]
[331347634,1720268833487,-294.90881825,0.00032126,30]
[331347635,1720268833512,-508.38933072,0.00032126,30]
[331347636,1720268833538,-500.0,0.00032126,30]
[331347637,1720268833564,-500.0,0.00032126,30]
[331347638,1720268833590,-705.46,0.00032126,30]
[331347639,1720268833616,-500.0,0.00032126,30]
[331347640,1720268833642,-184.30661095,0.00032126,30]
[331347641,1720268833668,-705.46,0.00032126,30]
[331347642,1720268833697,-500.0,0.00032126,30]
[331347643,1720268833727,-705.46,0.00032126,30]
[331347644,1720268833755,-500.0,0.00032126,30]
[331347645,1720268833784,-705.46,0.00032126,30]
[331347646,1720268833813,-500.0,0.00032126,30]
[331347647,1720268833840,-705.46,0.00032126,30]
[331347648,1720268833867,-705.46,0.00032126,30]
[331347649,1720268833892,-500.0,0.00032126,30]
[331347650,1720268833919,-500.0,0.00032126,30]
[331347651,1720268833945,-705.46,0.00032126,30]
[331347652,1720268833970,-500.0,0.00032126,30]
[331347653,1720268833996,-705.46,0.00032126,30]
[331347654,1720268834021,-463.22593912,0.00032126,30]
[331347655,1720268834048,-705.46,0.00032126,30]
[331347656,1720268834073,-705.46,0.00032126,30]
[331347657,1720268834099,-705.46,0.00032126,30]
[331347658,1720268834124,-705.46,0.00032126,30]
[331347659,1720268834151,-705.46,0.00032126,30]
[331347660,1720268834178,-705.46,0.00032126,30]
[331347661,1720268834204,-705.46,0.00032126,30]
[331347662,1720268834232,-705.46,0.00032126,30]
[331347663,1720268834259,-705.46,0.00032126,30]
[331347664,1720268834285,-705.46,0.00032126,30]
[331347665,1720268834312,-500.0,0.00032126,30]
[331347666,1720268834341,-705.46,0.00032126,30]
[331347667,1720268834368,-506.79923008,0.00032126,30]
[331347668,1720268834395,-705.46,0.00032126,30]
[331347669,1720268834422,-327.57745493,0.00032126,30]
[331347670,1720268834448,-705.46,0.00032126,30]
[331347671,1720268834475,-705.46,0.00032126,30]
[331347672,1720268834502,-705.46,0.00032126,30]
[331347673,1720268834529,-705.58911007,0.00032126,30]
[331347674,1720268834569,-500.0,0.00032126,30]
[331347675,1720268834599,-500.0,0.00032126,30]
[331347676,1720268834627,-573.1983569,0.00032126,30]
[331347677,1720268834656,-517.71388393,0.00032126,30]
[331347678,1720268834685,-500.0,0.00032126,30]
[331347679,1720268834712,-281.03642869,0.00032126,30]
[331347680,1720268834738,-500.0,0.00032126,30]
[331347681,1720268834767,-500.0,0.00032126,30]
[331347682,1720268834792,-500.0,0.00032126,30]
[331347683,1720268834819,-475.39098841,0.00032126,30]
[331347684,1720268834847,-500.0,0.00032126,30]
[331347685,1720268834873,-425.8875647,0.00032126,30]
[331347686,1720268834899,-168.4321692,0.00032126,30]
[331347687,1720268834928,-500.0,0.00032126,30]
[331347688,1720268834954,-500.0,0.00032126,30]
[331347689,1720268834981,-500.0,0.00032126,30]
[331347690,1720268835008,-500.0,0.00032126,30]
[331347691,1720268835034,-500.0,0.00032126,30]
[331347692,1720268835060,-239.28771814,0.00032126,30]
[331347693,1720268835086,-500.0,0.00032126,30]
[331347694,1720268835112,-500.0,0.00032126,30]
[331347695,1720268835138,-500.0,0.00032126,30]
[331347696,1720268835164,-500.0,0.00032126,30]
[331347697,1720268835190,-500.0,0.00032126,30]
[331347698,1720268835216,-500.0,0.00032126,30]
[331347699,1720268835241,-500.0,0.00032126,30]
[331347700,1720268835268,-500.0,0.00032126,30]
[331347701,1720268835293,-500.0,0.00032126,30]
[331347702,1720268835319,-500.0,0.00032126,30]
[331347703,1720268835504,-500.0,0.00032126,30]
[331347704,1720268835563,-500.0,0.00032126,30]
[331347705,1720268835590,-500.0,0.00032126,30]
[331347706,1720268835617,-500.0,0.00032126,30]
[331347707,1720268835643,-500.0,0.00032126,30]
[331347708,1720268835669,-500.0,0.00032126,30]
[331347709,1720268835699,-500.0,0.00032126,30]
[331347710,1720268835728,-500.0,0.00032126,30]
[331347711,1720268835755,-500.0,0.00032126,30]
[331347712,1720268835784,-514.70624309,0.00032126,30]
[331347713,1720268835810,-500.0,0.00032126,30]
[331347714,1720268835836,-500.0,0.00032126,30]
[331347715,1720268835863,-500.0,0.00032126,30]
[331347716,1720268835889,-500.0,0.00032126,30]
[331347717,1720268835914,-500.0,0.00032126,30]
[331347718,1720268835940,-564.83646573,0.00032126,30]
[331347719,1720268835967,-165.11663173,0.00032126,30]
[331347720,1720268835993,-500.0,0.00032126,30]
[331347721,1720268836019,-500.0,0.00032126,30]
[331347722,1720268836044,-500.0,0.00032126,30]
[331347723,1720268836069,-500.0,0.00032126,30]
[331347724,1720268836096,-500.0,0.00032126,30]
[331347725,1720268836123,-500.0,0.00032126,30]
[331347726,1720268836150,-500.0,0.00032126,30]
[331347727,1720268836177,-500.0,0.00032126,30]
[331347728,1720268836202,-445.78925641,0.00032126,30]
[331347729,1720268836227,-500.0,0.00032126,30]
[331347730,1720268836252,-500.0,0.00032126,30]
[331347731,1720268836278,-500.0,0.00032126,30]
[331347732,1720268836304,-500.0,0.00032126,30]
[331347733,1720268836334,-500.0,0.00032126,30]
[331347734,1720268836361,-500.0,0.00032126,30]
[331347735,1720268836388,-500.0,0.00032126,30]
[331347736,1720268836414,-500.0,0.00032126,30]
[331347737,1720268836439,-500.0,0.00032126,30]
[331347738,1720268836464,-500.0,0.00032126,30]
[331347739,1720268836489,-500.0,0.00032126,30]
[331347740,1720268836516,-500.0,0.00032126,30]
[331347741,1720268836542,-500.0,0.00032126,30]
[331347742,1720268836568,-600.49575161,0.00032126,30]
[331347743,1720268836593,-500.0,0.00032126,30]
[331347744,1720268836619,-500.0,0.00032126,30]
[331347745,1720268836645,-498.02618474,0.00032126,30]
[331347746,1720268836672,-444.12617105,0.00032126,30]
[331347747,1720268836704,-500.0,0.00032126,20]
[331347748,1720268836729,-500.0,0.00032126,30]
[331347749,1720268836755,-500.0,0.00032126,20]
[331347750,1720268836785,-500.0,0.00032126,30]
[331347751,1720268836812,-500.0,0.00032126,20]
[331347752,1720268836839,-500.0,0.00032126,30]
[331347753,1720268836866,-500.0,0.00032126,20]
[331347754,1720268836892,-500.0,0.00032126,30]
[331347755,1720268836919,-500.0,0.00032126,30]
[331347756,1720268836945,-500.0,0.00032126,20]
[331347757,1720268836971,-500.0,0.00032126,30]
[331347758,1720268836996,-500.0,0.00032126,30]
[331347759,1720268837022,-500.0,0.00032126,30]
[331347760,1720268837048,-500.0,0.00032126,30]
[331347761,1720268837073,-500.0,0.00032126,30]
[331347762,1720268837098,-500.0,0.00032126,30]
[331347763,1720268837123,-500.0,0.00032126,30]
[331347764,1720268837149,-500.0,0.00032126,30]
[331347765,1720268837178,-500.0,0.00032126,30]
[331347766,1720268837206,-500.0,0.00032126,30]
[331347767,1720268837232,-500.0,0.00032126,30]
[331347768,1720268837258,-500.0,0.00032126,30]
[331347769,1720268837284,-217.52935815,0.00032126,30]
[331347770,1720268837311,-500.0,0.00032126,30]
[331347771,1720268837339,-500.0,0.00032126,30]
[331347772,1720268837368,-500.0,0.00032126,30]
[331347773,1720268837394,-500.0,0.00032126,30]
[331347774,1720268837420,-514.22176452,0.00032126,30]
[331347775,1720268837446,-500.0,0.00032126,30]
[331347776,1720268837472,-500.0,0.00032126,30]
[331347777,1720268837498,-500.0,0.00032126,30]
[331347778,1720268837526,-500.0,0.00032126,30]
[331347779,1720268837552,-500.0,0.00032126,30]
[331347780,1720268837579,-500.0,0.00032126,30]
[331347781,1720268837607,-500.0,0.00032126,30]
[331347782,1720268837634,-500.0,0.00032126,30]
[331347783,1720268837661,-500.0,0.00032126,30]
[331347784,1720268837689,-500.0,0.00032126,30]
[331347785,1720268837715,-500.0,0.00032126,30]
[331347786,1720268837744,-500.0,0.00032126,20]
[331347787,1720268837772,-517.9268222,0.00032126,30]
[331347788,1720268837798,-500.0,0.00032126,30]
[331347789,1720268837824,-500.0,0.00032126,30]
[331347790,1720268837850,-500.0,0.00032126,30]
[331347791,1720268837876,-500.0,0.00032126,30]
[331347792,1720268837902,-500.0,0.00032126,30]
[331347793,1720268837928,-500.0,0.00032126,30]
[331347794,1720268837954,-500.0,0.00032126,30]
[331347795,1720268837981,-500.0,0.00032126,30]
[331347796,1720268838007,-500.0,0.00032126,30]
[331347797,1720268838036,-329.81058241,0.00032126,30]
[331347798,1720268838063,-500.0,0.00032126,30]
[331347799,1720268838090,-500.0,0.00032126,30]
[331347800,1720268838117,-500.0,0.00032126,30]
[331347801,1720268838144,-500.0,0.00032126,30]
[331347802,1720268838170,-500.0,0.00032126,30]
[331347803,1720268838198,-500.0,0.00032126,30]
[331347804,1720268838225,-500.0,0.00032126,30]
[331347805,1720268838253,-511.12334865,0.00032126,30]
[331347806,1720268838279,-500.0,0.00032126,30]
[331347807,1720268838491,-500.0,0.00032126,20]
[331347808,1720268838519,-500.0,0.00032126,30]
[331347809,1720268838548,-500.0,0.00032126,20]
[331347810,1720268838577,-507.60612263,0.00032126,30]
[331347811,1720268838606,-500.0,0.00032126,20]
[331347812,1720268838633,-500.0,0.00032126,20]
[331347813,1720268838661,-500.0,0.00032126,20]
[331347814,1720268838691,-500.0,0.00032126,20]
[331347815,1720268838720,-500.0,0.00032126,30]
[331347816,1720268838749,-500.0,0.00032126,20]
[331347817,1720268838774,-500.0,0.00032126,30]
[331347818,1720268838801,-500.0,0.00032126,20]
[331347819,1720268838826,-500.0,0.00032126,30]
[331347820,1720268838852,-500.0,0.00032126,20]
[331347821,1720268838879,-500.0,0.00032126,30]
[331347822,1720268838904,-500.0,0.00032126,30]
[331347823,1720268838931,-500.0,0.00032126,20]
[331347824,1720268838957,-500.0,0.00032126,30]
[331347825,1720268838984,-500.0,0.00032126,30]
[331347826,1720268839010,-500.0,0.00032126,20]
[331347827,1720268839036,-500.0,0.00032126,30]
[331347828,1720268839062,-500.0,0.00032126,30]
[331347829,1720268839088,-500.0,0.00032126,20]
[331347830,1720268839113,-500.0,0.00032126,30]
[331347831,1720268839139,-500.0,0.00032126,30]
[331347832,1720268839166,-500.0,0.00032126,30]
[331347833,1720268839192,-500.0,0.00032126,30]
[331347834,1720268839217,-300.63663947,0.00032126,20]
[331347835,1720268839244,-500.0,0.00032126,30]
[331347836,1720268839270,-500.0,0.00032126,30]
[331347837,1720268839296,-500.0,0.00032126,30]
[331347838,1720268839323,-500.0,0.00032126,30]
[331347839,1720268839352,-500.0,0.00032126,30]
[331347840,1720268839382,-500.0,0.00032126,30]
[331347841,1720268839412,-500.0,0.00032126,30]
[331347842,1720268839445,-559.98010393,0.00032126,30]
[331347843,1720268839475,-500.0,0.00032126,30]
[331347844,1720268839502,-500.0,0.00032126,30]
[331347845,1720268839530,-500.0,0.00032126,30]
[331347846,1720268839557,-500.0,0.00032126,30]
[331347847,1720268839585,-500.0,0.00032126,30]
[331347848,1720268839612,-265.88440083,0.00032126,30]
[331347849,1720268839641,-1028.71,0.00032126,30]
[331347850,1720268839673,-1028.71,0.00032126,30]
[331347851,1720268839707,-831.73,0.00032126,30]
[331347852,1720268839737,-1028.71,0.00032126,30]
[331347853,1720268839766,-831.73,0.00032126,30]
[331347854,1720268839795,-1028.71,0.00032126,30]
[331347855,1720268839823,-831.73,0.00032126,30]
[331347856,1720268839850,-1028.71,0.00032126,30]
[331347857,1720268839880,-831.73,0.00032126,30]
[331347858,1720268839907,-1028.71,0.00032126,30]
[331347859,1720268839934,-831.73,0.00032126,30]
[331347860,1720268839962,-1028.71,0.00032126,30]
[331347861,1720268839990,-831.73,0.00032126,30]
[331347862,1720268840016,-1028.71,0.00032126,30]
[331347863,1720268840044,-1028.71,0.00032126,30]
[331347864,1720268840075,-831.73,0.00032126,30]
[331347865,1720268840101,-1028.71,0.00032126,30]
[331347866,1720268840129,-831.73,0.00032126,30]
[331347867,1720268840156,-1028.71,0.00032126,30]
[331347868,1720268840185,-1028.71,0.00032126,30]
[331347869,1720268840211,-831.73,0.00032126,30]
[331347870,1720268840237,-831.73,0.00032126,30]
[331347871,1720268840263,-1028.71,0.00032126,30]
[331347872,1720268840290,-1028.71,0.00032126,30]
[331347873,1720268840319,-831.73,0.00032126,30]
[331347874,1720268840347,-1028.71,0.00032126,30]
[331347875,1720268840374,-831.73,0.00032126,30]
[331347876,1720268840402,-1028.71,0.00032126,30]
[331347877,1720268840429,-1028.71,0.00032126,30]
[331347878,1720268840458,-831.73,0.00032126,30]
[331347879,1720268840486,-1028.71,0.00032126,30]
[331347880,1720268840516,-1028.71,0.00032126,30]
[331347881,1720268840544,-831.73,0.00032126,30]
[331347882,1720268840572,-831.73,0.00032126,30]
[331347883,1720268840598,-1028.71,0.00032126,30]
[331347884,1720268840624,-831.73,0.00032126,30]
[331347885,1720268840651,-1028.71,0.00032126,30]
[331347886,1720268840681,-831.73,0.00032126,30]
[331347887,1720268840710,-1028.71,0.00032126,30]
[331347888,1720268840737,-831.73,0.00032126,30]